bitfinex/quotes_SOLUSD_20220118
["timestamp","ask_amount","ask_price","bid_price","bid_amount"]
[1642474861642,2.851,140.33,140.25,36.34473383]
[1642474861643,13.5432,140.33,140.24,2.851]
[1642474861841,0.25,140.32,140.26,0.25]
[1642474862645,22.8066,140.32,140.26,0.25]
[1642474863641,33.5001,140.32,140.26,0.25]
[1642474864043,33.5001,140.32,140.25,43.91546438]
[1642474864245,33.5001,140.32,140.24,10.23]
[1642474864445,2.851,140.31,140.24,10.23]
[1642474864848,0.25,140.3,140.24,10.23]
[1642474869650,10.9445,140.3,140.24,10.23]
[1642474869851,2.851,140.29,140.22,24.2269]
[1642474870050,25.4354,140.29,140.22,24.2269]
[1642474870350,0.25,140.28,140.22,24.2269]
[1642474870956,35.1208812,140.28,140.21,10.6939]
[1642474871155,35.1208812,140.28,140.2,13.081]
[1642474871357,2.852,140.27,140.18,10.23]
[1642474871560,27.8271,140.27,140.18,10.23]
[1642474871757,0.25,140.26,140.18,10.23]
[1642474872160,0.25,140.26,140.19,44.65095338]
[1642474872558,27.8271,140.27,140.19,44.40095338]
[1642474872760,27.8271,140.27,140.19,55.35745338]
[1642474872961,24.9751,140.27,140.2,10.23]
[1642474873159,4.06495634,140.29,140.2,10.23]
[1642474873360,0.25,140.28,140.2,11.90369052]
[1642474873761,0.25,140.28,140.22,10.6941]
[1642474874160,0.25,140.28,140.22,57.94116477]
[1642474874562,0.25,140.28,140.22,47.24706477]
[1642474876366,0.25,140.28,140.22,57.94176477]
[1642474878168,9.112,140.29,140.22,57.94176477]
[1642474878369,0.26,140.29,140.23,2.851]
[1642474878568,0.26,140.29,140.24,10.693]
[1642474878769,29.35,140.3,140.24,10.693]
[1642474879269,29.35,140.3,140.25,49.12291118]
[1642474880696,6.0,140.3,140.25,59.81521118]
[1642474880897,4.06495634,140.32,140.26,3.101]
[1642474881096,6.0,140.3,140.26,3.101]
[1642474881496,4.06495634,140.32,140.26,3.101]
[1642474881696,6.0,140.3,140.26,3.101]
[1642474882101,4.06495634,140.32,140.26,3.101]
[1642474882296,24.5466,140.33,140.27,10.6907]
[1642474882499,6.0,140.32,140.28,36.9488352]
[1642474882696,24.5466,140.33,140.28,36.9488352]
[1642474883096,24.5466,140.33,140.26,3.101]
[1642474883097,30.5466,140.33,140.26,3.101]
[1642474883299,0.25,140.32,140.26,13.5421]
[1642474883598,2.851,140.31,140.26,13.5421]
[1642474883797,2.851,140.31,140.26,10.6911]
[1642474883998,2.851,140.31,140.27,37.13826833]
[1642474884198,0.26,140.31,140.27,37.13826833]
[1642474884398,0.25,140.32,140.27,37.13826833]
[1642474884999,0.25,140.32,140.27,47.82926833]
[1642474886601,4.06495634,140.34,140.28,81.78]
[1642474886802,4.06495634,140.34,140.3,71.3]
[1642474887000,4.06495634,140.34,140.31,81.53]
[1642474887201,5.634e-05,140.34,140.31,81.53]
[1642474887505,5.634e-05,140.34,140.32,1.6601495]
[1642474887702,5.634e-05,140.34,140.33,10.23]
[1642474887902,5.634e-05,140.34,140.33,10.48]
[1642474888102,6.10572793,140.37,140.33,10.74]
[1642474888305,2.85,140.42,140.34,0.25]
[1642474888504,2.85,140.42,140.35,10.6845]
[1642474888903,23.3376,140.4,140.35,10.6845]
[1642474889304,23.0776,140.4,140.35,10.6845]
[1642474889502,23.0776,140.4,140.35,20.9145]
[1642474889703,23.0776,140.4,140.35,21.1745]
[1642474890504,29.0776,140.4,140.35,21.1745]
[1642474892407,29.3376,140.4,140.35,21.1745]
[1642474893210,29.3376,140.4,140.35,20.9145]
[1642474893709,29.3376,140.4,140.35,10.23]
[1642474894809,0.25,140.39,140.35,10.23]
[1642474895009,3.099,140.39,140.31,23.7664]
[1642474895213,3.099,140.39,140.31,10.6874]
[1642474895214,27.1743,140.39,140.31,10.6874]
[1642474896509,37.8627,140.39,140.31,10.6874]
[1642474897115,27.1743,140.39,140.31,10.6874]
[1642474897315,27.1743,140.39,140.32,47.00365273]
[1642474897716,26.9243,140.39,140.33,10.9362]
[1642474898017,24.0753,140.39,140.33,10.9362]
[1642474898215,24.0753,140.39,140.33,11.1962]
[1642474899018,30.0753,140.39,140.35,10.6847]
[1642474899217,30.0753,140.39,140.34,2.849]
[1642474899416,6.0,140.39,140.35,0.25]
[1642474899917,24.4159,140.42,140.34,2.849]
[1642474900216,0.25,140.38,140.32,20.9168]
[1642474900417,3.099,140.41,140.32,20.9168]
[1642474900619,0.25,140.38,140.32,20.9168]
[1642474901018,22.5675,140.4,140.32,20.9168]
[1642474901220,6.0,140.39,140.33,0.25]
[1642474901418,22.5675,140.4,140.32,21.1768]
[1642474901619,6.0,140.39,140.32,21.1768]
[1642474901818,6.25,140.39,140.33,3.099]
[1642474902117,0.25,140.39,140.33,0.25]
[1642474902517,0.25,140.39,140.33,21.1662]
[1642474902720,31.4165,140.4,140.34,47.28489182]
[1642474902917,28.5675,140.4,140.34,47.28489182]
[1642474904319,28.8275,140.4,140.34,47.28489182]
[1642474904520,28.8275,140.4,140.34,57.97049182]
[1642474905518,28.8275,140.4,140.34,10.6856]
[1642474906519,28.8275,140.4,140.34,57.69202415]
[1642474912326,22.8275,140.4,140.34,57.69202415]
[1642474912926,22.8275,140.4,140.34,57.95202415]
[1642474913357,22.8275,140.4,140.35,10.23]
[1642474913557,0.26,140.4,140.36,10.6836]
[1642474913760,27.0332,140.43,140.37,42.08406626]
[1642474914659,4.06730938,140.42,140.37,42.08406626]
[1642474915561,24.1842,140.43,140.37,52.76766626]
[1642474916760,24.1842,140.43,140.38,0.25]
[1642474916960,24.1842,140.43,140.38,10.9327]
[1642474917162,24.4442,140.43,140.38,10.9327]
[1642474917361,24.1842,140.43,140.38,10.9327]
[1642474919463,24.1842,140.43,140.38,21.1627]
[1642474920364,25.6101,140.45,140.38,21.1627]
[1642474920565,11.7345807,140.44,140.38,21.1627]
[1642474920869,0.25,140.44,140.38,21.1627]
[1642474921070,0.51,140.44,140.38,21.1627]
[1642474921270,4.31706901,140.44,140.38,21.1627]
[1642474921673,4.31706901,140.44,140.38,60.11119278]
[1642474922071,4.06706901,140.43,140.38,60.11119278]
[1642474922272,4.06706901,140.43,140.38,21.1627]
[1642474923076,4.06706901,140.44,140.38,21.1627]
[1642474923376,4.06706901,140.44,140.38,69.96185269]
[1642474925177,4.32706901,140.44,140.36,0.009]
[1642474925479,4.32706901,140.44,140.22,296.70974366]
[1642474925480,19.22999999,140.25,140.19,342.61298045]
[1642474925977,25.22999999,140.25,140.2,2.852]
[1642474926180,25.22999999,140.25,140.18,9.673926]
[1642474926377,0.25,140.24,140.18,9.673926]
[1642474926578,8.275,140.24,140.18,9.673926]
[1642474927185,10.23,140.23,140.19,38.48776982]
[1642474927380,0.25,140.22,140.19,38.48776982]
[1642474927580,2.80269903,140.25,140.19,38.48776982]
[1642474927781,7.42730097,140.29,140.2,2.851]
[1642474928280,7.42730097,140.29,140.2,8.851]
[1642474928481,7.42730097,140.29,140.2,2.851]
[1642474928683,7.42730097,140.29,140.21,0.25]
[1642474928884,17.65730097,140.29,140.22,2.851]
[1642474929082,2.851,140.28,140.2,0.25]
[1642474929286,3.101,140.28,140.2,0.25]
[1642474929483,10.23,140.27,140.2,0.25]
[1642474930084,10.23,140.27,140.19,38.48776982]
[1642474930286,74.402,140.26,140.16,2.852]
[1642474930485,10.23,140.25,140.13,2.852]
[1642474930686,2.853,140.24,140.12,2.853]
[1642474930891,10.23,140.23,140.1,2.853]
[1642474931088,2.853,140.22,140.07,2.853]
[1642474931287,2.853,140.22,140.08,39.59958924]
[1642474931288,10.7037,140.18,140.08,39.59958924]
[1642474931487,21.19289653,140.17,140.09,2.854]
[1642474931689,34.52689653,140.17,140.09,2.854]
[1642474931888,34.52689653,140.17,140.08,43.67244538]
[1642474932116,34.78689653,140.17,140.08,43.67244538]
[1642474932588,10.7056,140.16,140.08,43.67244538]
[1642474932789,0.25,140.15,140.08,43.67244538]
[1642474933089,0.25,140.15,140.08,39.59958924]
[1642474933589,0.25,140.15,140.09,0.25]
[1642474933789,10.7056,140.16,140.09,0.25]
[1642474935292,10.7056,140.16,140.09,3.104]
[1642474935693,10.9656,140.16,140.09,3.104]
[1642474936092,10.9656,140.16,140.09,2.854]
[1642474936293,13.8103,140.15,140.08,39.59958924]
[1642474939399,13.5589,140.17,140.09,0.25]
[1642474939636,10.7049,140.17,140.09,2.854]
[1642474939827,3.104,140.16,140.08,39.85958924]
[1642474940029,2.854,140.16,140.09,0.25]
[1642474940225,10.7049,140.17,140.08,39.85958924]
[1642474940426,0.25,140.15,140.08,39.85958924]
[1642474940629,0.25,140.15,140.09,0.25]
[1642474940927,0.25,140.15,140.08,0.25]
[1642474941125,3.104,140.15,140.08,0.25]
[1642474942227,3.104,140.15,140.07,44.37556974]
[1642474942627,13.8099,140.15,140.07,44.37556974]
[1642474943529,13.8099,140.15,140.07,44.63556974]
[1642474944530,10.9559,140.15,140.07,44.63556974]
[1642474945031,2.854,140.17,140.08,0.25]
[1642474945032,13.5589,140.17,140.08,0.25]
[1642474945430,0.25,140.16,140.08,0.25]
[1642474945630,2.854,140.17,140.09,2.854]
[1642474945831,2.854,140.2,140.1,0.25]
[1642474946631,2.854,140.2,140.1,44.86676914]
[1642474946832,2.854,140.2,140.1,45.12676914]
[1642474947231,0.25,140.19,140.1,116.42676914]
[1642474947636,2.854,140.2,140.1,55.82816914]
[1642474947834,2.854,140.2,140.11,71.3]
[1642474948033,2.853,140.22,140.12,10.23]
[1642474948234,27.5685,140.25,140.12,10.48]
[1642474948434,2.853,140.25,140.13,71.3]
[1642474948634,2.853,140.25,140.14,10.23]
[1642474948834,47.84672799,140.25,140.15,81.9974]
[1642474949133,47.84672799,140.25,140.15,92.2274]
[1642474949134,58.54492799,140.25,140.15,92.2274]
[1642474949335,58.80492799,140.25,140.15,92.4874]
[1642474949535,0.25,140.24,140.15,21.1874]
[1642474949834,2.853,140.23,140.16,0.25]
[1642474950035,2.853,140.24,140.16,0.25]
[1642474950435,13.5523,140.24,140.16,0.25]
[1642474951136,0.25,140.23,140.16,0.25]
[1642474952539,10.9498,140.23,140.16,0.25]
[1642474952741,13.92252016,140.22,140.16,0.25]
[1642474954442,10.9498,140.23,140.16,0.25]
[1642474954843,10.6998,140.23,140.16,0.25]
[1642474956244,53.16762232,140.24,140.16,0.25]
[1642474957247,53.42762232,140.24,140.16,0.25]
[1642474960450,10.959,140.24,140.16,0.25]
[1642474960649,0.26,140.24,140.16,8.034]
[1642474960848,2.853,140.25,140.16,8.294]
[1642474961049,37.56039039,140.26,140.17,2.852]
[1642474961249,0.25,140.25,140.18,0.25]
[1642474961451,0.25,140.25,140.18,49.61828196]
[1642474961849,10.9485,140.25,140.18,49.61828196]
[1642474962850,10.9485,140.25,140.18,0.25]
[1642474963550,10.9485,140.25,140.16,2.852]
[1642474963754,2.852,140.24,140.13,10.23]
[1642474963951,10.7018,140.21,140.14,47.74998546]
[1642474964153,2.853,140.2,140.14,47.74998546]
[1642474964354,3.103,140.2,140.14,47.74998546]
[1642474964554,3.363,140.2,140.14,47.74998546]
[1642474964853,3.113,140.2,140.14,47.74998546]
[1642474965054,0.26,140.2,140.15,0.25]
[1642474965253,0.25,140.21,140.15,0.25]
[1642474965753,13.5536,140.22,140.15,0.25]
[1642474965953,19.03512346,140.23,140.15,0.25]
[1642474966253,0.25,140.22,140.15,0.25]
[1642474967256,0.25,140.23,140.15,0.25]
[1642474967456,2.853,140.22,140.15,0.25]
[1642474968256,0.26,140.22,140.15,10.48]
[1642474968657,13.552,140.24,140.15,10.74]
[1642474968860,13.812,140.24,140.15,84.893]
[1642474969256,13.812,140.24,140.15,13.593]
[1642474969958,13.812,140.24,140.15,84.893]
[1642474970759,13.552,140.24,140.15,13.593]
[1642474971657,19.11503963,140.23,140.15,15.62887174]
[1642474971956,29.81473963,140.23,140.15,15.62887174]
[1642474972156,30.07473963,140.23,140.15,15.62887174]
[1642474972356,30.07473963,140.23,140.15,86.92887174]
[1642474973487,11.2097,140.23,140.15,86.92887174]
[1642474973787,11.2097,140.23,140.15,15.62887174]
[1642474974188,11.2097,140.23,140.15,15.11887174]
[1642474974387,10.702,140.21,140.15,4.88887174]
[1642474974587,2.853,140.2,140.15,4.88887174]
[1642474974789,3.103,140.2,140.15,4.88887174]
[1642474975087,3.103,140.2,140.15,2.853]
[1642474975287,48.10588508,140.19,140.15,2.853]
[1642474975487,2.853,140.18,140.13,2.03587174]
[1642474975688,3.103,140.18,140.13,2.03587174]
[1642474976292,3.103,140.18,140.11,2.03587174]
[1642474976691,13.8071,140.18,140.11,2.03587174]
[1642474977592,15.8076637,140.18,140.09,45.70930823]
[1642474980995,15.8076637,140.18,140.09,2.03587174]
[1642474981198,16.0676637,140.18,140.09,2.03587174]
[1642474981995,16.0676637,140.18,140.09,50.37523436]
[1642474983096,14.0671,140.18,140.09,48.33936262]
[1642474983297,13.5571,140.18,140.1,0.25]
[1642474983701,2.853,140.18,140.1,0.25]
[1642474983899,2.854,140.19,140.11,2.854]
[1642474984099,4.8545637,140.19,140.11,2.854]
[1642474984299,4.8545637,140.19,140.11,3.114]
[1642474984698,4.8545637,140.19,140.12,38.39020636]
[1642474984900,4.8545637,140.19,140.12,38.90020636]
[1642474985101,2.854,140.19,140.12,40.9360781]
[1642474985298,73.45788869,140.2,140.12,40.9360781]
[1642474986099,0.25,140.19,140.12,40.9360781]
[1642474987301,0.25,140.19,140.12,2.54587174]
[1642474987700,10.9529,140.19,140.12,2.28587174]
[1642474988103,10.9529,140.19,140.12,45.75589637]
[1642474988501,10.9529,140.19,140.12,2.03587174]
[1642474989701,10.9529,140.19,140.11,38.25942957]
[1642474990604,11.2129,140.19,140.11,38.25942957]
[1642474991201,13.2134637,140.19,140.11,38.25942957]
[1642474992604,13.2134637,140.19,140.12,0.25]
[1642474992805,13.2134637,140.19,140.11,38.25942957]
[1642474993003,2.854,140.18,140.11,38.25942957]
[1642474993204,23.40985946,140.17,140.11,2.03587174]
[1642474993405,23.65985946,140.17,140.11,2.03587174]
[1642474994207,2.854,140.16,140.11,2.03587174]
[1642474994407,0.25,140.15,140.11,2.03587174]
[1642474995007,0.25,140.15,140.09,2.03587174]
[1642474995307,10.706,140.15,140.1,0.25]
[1642474995509,10.706,140.15,140.1,35.48775484]
[1642474995707,26.26385946,140.17,140.1,35.48775484]
[1642474995910,0.25,140.16,140.1,35.48775484]
[1642474996109,0.25,140.16,140.09,2.03587174]
[1642474996708,0.25,140.16,140.07,26.7336]
[1642474996709,0.25,140.16,140.1,2.03587174]
[1642474997510,10.9552,140.16,140.1,2.03587174]
[1642474997909,10.9552,140.16,140.09,2.03587174]
[1642475001314,11.2152,140.16,140.09,2.03587174]
[1642475002114,11.2152,140.16,140.1,0.25]
[1642475002719,11.2152,140.16,140.09,2.03587174]
[1642475002920,10.7076,140.14,140.09,2.03587174]
[1642475003319,0.25,140.13,140.09,2.03587174]
[1642475004521,10.9579,140.13,140.09,2.03587174]
[1642475005122,11.2179,140.13,140.09,2.03587174]
[1642475005320,11.2179,140.13,140.07,45.32357219]
[1642475005927,10.9579,140.13,140.07,45.32357219]
[1642475006125,10.9579,140.13,140.07,42.46957219]
[1642475006325,0.25,140.13,140.07,42.46957219]
[1642475006725,0.25,140.14,140.07,42.46957219]
[1642475007452,0.25,140.14,140.08,2.03587174]
[1642475007650,10.9568,140.14,140.08,2.03587174]
[1642475008151,0.25,140.14,140.08,2.03587174]
[1642475009253,80.03593268,140.15,140.09,0.25]
[1642475009455,77.18193268,140.15,140.09,0.25]
[1642475009654,35.1266,140.15,140.09,0.25]
[1642475010054,35.1266,140.15,140.09,2.28587174]
[1642475011357,35.1266,140.15,140.1,37.10371043]
[1642475011755,0.25,140.14,140.1,37.10371043]
[1642475012455,0.25,140.14,140.09,2.28587174]
[1642475012955,0.25,140.14,140.09,2.03587174]
[1642475013455,0.25,140.14,140.09,47.88058852]
[1642475013657,35.1266,140.15,140.1,0.25]
[1642475013856,35.1266,140.15,140.09,45.84471678]
[1642475014459,35.1266,140.15,140.09,47.88058852]
[1642475015257,35.1266,140.15,140.09,2.03587174]
[1642475017359,24.4206,140.15,140.1,0.25]
[1642475017762,24.4206,140.15,140.09,2.03587174]
[1642475018160,12.59519107,140.14,140.09,2.03587174]
[1642475018561,12.59519107,140.14,140.1,2.03587174]
[1642475018960,24.1606,140.15,140.1,2.03587174]
[1642475019763,0.25,140.14,140.1,2.03587174]
[1642475020763,72.84226656,140.15,140.1,2.03587174]
[1642475021164,73.10226656,140.15,140.1,2.03587174]
[1642475021363,73.10226656,140.15,140.12,3.8226564]
[1642475021563,6.31119793,140.14,140.12,3.8226564]
[1642475021763,6.06119793,140.14,140.12,3.8226564]
[1642475024065,13.5582,140.18,140.12,3.8226564]
[1642475024268,0.25,140.17,140.12,3.8226564]
[1642475024464,2.854,140.18,140.12,3.8226564]
[1642475024665,2.854,140.18,140.13,45.24212189]
[1642475024865,3.25829962,140.19,140.12,3.8226564]
[1642475025269,13.96109962,140.19,140.12,3.8226564]
[1642475025766,11.05677774,140.18,140.12,5.85852814]
[1642475025968,11.30677774,140.18,140.12,5.85852814]
[1642475026968,0.25,140.18,140.12,5.85852814]
[1642475027170,3.104,140.18,140.12,5.85852814]
[1642475028069,3.104,140.18,140.12,3.8226564]
[1642475028269,0.25,140.18,140.13,44.87601426]
[1642475029074,10.9538,140.18,140.12,3.8226564]
[1642475029573,11.2138,140.18,140.12,3.8226564]
[1642475029776,11.2138,140.18,140.12,5.85852814]
[1642475030174,11.2138,140.18,140.13,49.04631865]
[1642475030977,11.2138,140.18,140.12,5.85852814]
[1642475032081,24.42076426,140.17,140.12,5.85852814]
[1642475032284,0.25,140.16,140.12,5.85852814]
[1642475032784,0.25,140.16,140.12,3.8226564]
[1642475033507,13.8093,140.16,140.12,3.8226564]
[1642475036813,24.0393,140.16,140.12,3.8226564]
[1642475037013,95.5993,140.16,140.12,3.8226564]
[1642475038417,97.5998637,140.16,140.12,3.8226564]
[1642475040325,26.0398637,140.16,140.12,3.8226564]
[1642475041321,24.0393,140.16,140.12,3.8226564]
[1642475041921,24.2993,140.16,140.12,3.8226564]
[1642475042821,11.2153,140.16,140.12,3.8226564]
[1642475043525,10.9653,140.16,140.12,3.8226564]
[1642475045025,0.25,140.15,140.12,3.8226564]
[1642475045423,6.06119793,140.14,140.12,3.8226564]
[1642475045922,0.25,140.13,140.12,3.8226564]
[1642475047723,16.76799793,140.14,140.12,3.8226564]
[1642475047921,0.25,140.13,140.12,3.8226564]
[1642475049927,17.02799793,140.14,140.12,3.8226564]
[1642475051531,0.25,140.13,140.12,3.8226564]
[1642475055366,6.32119793,140.14,140.12,3.8226564]
[1642475055767,0.25,140.13,140.12,3.8226564]
[1642475071195,3.104,140.13,140.12,3.8226564]
[1642475072291,0.25,140.13,140.12,3.8226564]
[1642475072892,45.00798574,140.13,140.12,3.8226564]
[1642475073291,47.86198574,140.13,140.12,3.8226564]
[1642475073696,47.61198574,140.13,140.12,3.8226564]
[1642475073895,2.854,140.13,140.12,3.8226564]
[1642475074498,19.62189793,140.14,140.12,3.8226564]
[1642475074700,16.76789793,140.14,140.12,3.8226564]
[1642475074896,58.17762281,140.14,140.12,3.8226564]
[1642475075097,0.25,140.13,140.12,3.8226564]
[1642475077802,3.104,140.13,140.12,3.8226564]
[1642475078921,3.364,140.13,140.12,3.8226564]
[1642475084325,0.26,140.13,140.12,3.8226564]
[1642475086927,0.51,140.13,140.12,3.8226564]
[1642475090631,3.364,140.13,140.12,3.8226564]
[1642475093634,14.0714,140.13,140.08,2.03587174]
[1642475094334,14.0714,140.13,140.07,35.37637174]
[1642475094534,20.0248214,140.12,140.07,35.37637174]
[1642475094734,2.855,140.11,140.07,35.37637174]
[1642475094939,13.8144,140.11,140.07,12.26587174]
[1642475095335,13.8144,140.11,140.07,2.03587174]
[1642475095738,13.8144,140.11,140.06,2.03587174]
[1642475096034,10.9594,140.11,140.06,2.03587174]
[1642475096437,13.8144,140.11,140.06,2.03587174]
[1642475098738,14.0744,140.11,140.06,2.03587174]
[1642475100139,13.8144,140.11,140.06,2.03587174]
[1642475100338,2.855,140.11,140.06,2.03587174]
[1642475100538,10.708,140.13,140.06,2.03587174]
[1642475100539,13.563,140.13,140.06,2.03587174]
[1642475100739,0.25,140.12,140.06,4.89087174]
[1642475100942,0.25,140.12,140.06,2.03587174]
[1642475103647,52.69544531,140.13,140.06,2.03587174]
[1642475104048,52.69544531,140.13,140.07,2.03587174]
[1642475104449,2.855,140.13,140.07,2.03587174]
[1642475104675,1.43403688,140.14,140.08,0.25]
[1642475105248,1.43403688,140.14,140.08,0.274957]
[1642475105449,1.43403688,140.14,140.08,48.48730098]
[1642475105649,1.43403688,140.14,140.08,59.19180098]
[1642475105847,1.43403688,140.14,140.08,59.45180098]
[1642475106050,1.43403688,140.14,140.08,61.48767272]
[1642475107351,1.43403688,140.14,140.09,2.854]
[1642475108151,1.69403688,140.14,140.09,2.854]
[1642475110252,1.69403688,140.14,140.11,0.02486759]
[1642475110451,6.06119793,140.13,140.11,0.02486759]
[1642475111855,6.32119793,140.13,140.11,0.02486759]
[1642475113284,3.29059897,140.13,140.11,0.02486759]
[1642475113484,0.26,140.13,140.11,0.02486759]
[1642475113685,1.43403688,140.14,140.11,0.02486759]
[1642475113887,1.69403688,140.14,140.11,0.02486759]
[1642475114688,6.06119793,140.13,140.11,0.02486759]
[1642475115087,28.854,140.12,140.11,0.02486759]
[1642475115288,3.104,140.12,140.09,2.87880801]
[1642475115887,38.77256864,140.11,140.09,2.87880801]
[1642475116088,38.77256864,140.11,140.09,0.02480801]
[1642475116890,3.105,140.1,140.09,0.02480801]
[1642475117290,3.365,140.1,140.09,0.02480801]
[1642475117893,3.115,140.1,140.09,0.02480801]
[1642475118294,9.42619793,140.1,140.09,0.02480801]
[1642475120196,9.42619793,140.1,140.03,69.85449115]
[1642475120398,6.57119793,140.1,140.03,69.85449115]
[1642475122902,0.25,140.09,140.04,0.25]
[1642475123303,52.44782679,140.11,140.04,0.25]
[1642475123502,0.25,140.1,140.04,0.25]
[1642475123801,13.564,140.11,140.04,3.105]
[1642475124208,13.564,140.11,140.04,9.105]
[1642475125002,2.855,140.11,140.04,77.55]
[1642475125203,0.26,140.11,140.06,0.02501662]
[1642475125403,2.0005637,140.12,140.06,10.50501662]
[1642475125603,2.2605637,140.12,140.06,10.50501662]
[1642475125802,2.2605637,140.12,140.06,10.76501662]
[1642475126008,2.2605637,140.12,140.07,41.64310109]
[1642475126203,0.26,140.12,140.07,41.64310109]
[1642475126403,2.0005637,140.13,140.07,44.49810109]
[1642475126603,2.2605637,140.13,140.07,44.49810109]
[1642475127003,0.26,140.13,140.07,44.49810109]
[1642475127303,29.24730058,140.14,140.07,44.49810109]
[1642475127503,29.24730058,140.14,140.08,0.25]
[1642475127705,26.39230058,140.14,140.08,0.25]
[1642475127906,24.39173688,140.14,140.08,0.25]
[1642475128307,0.25,140.13,140.08,0.25]
[1642475129309,0.25,140.13,140.07,44.49810109]
[1642475129508,0.25,140.13,140.08,0.25]
[1642475130216,0.25,140.13,140.1,0.02489739]
[1642475130417,3.03059896,140.12,140.1,0.02489739]
[1642475130715,6.06119793,140.12,140.1,0.02489739]
[1642475131137,6.32119793,140.12,140.1,0.02489739]
[1642475133041,0.25,140.11,140.1,0.02489739]
[1642475135245,46.54505649,140.11,140.06,0.27489739]
[1642475137347,10.959,140.11,140.06,0.27489739]
[1642475139346,11.219,140.11,140.06,0.27489739]
[1642475139648,0.51,140.11,140.06,0.27489739]
[1642475139848,0.25,140.11,140.06,0.27489739]
[1642475140249,0.25,140.11,140.08,0.024957]
[1642475140447,6.06119793,140.1,140.08,0.024957]
[1642475141550,10.7084,140.12,140.08,0.024957]
[1642475141751,4.8555637,140.13,140.08,0.024957]
[1642475141950,2.0005637,140.13,140.08,0.024957]
[1642475142451,26.39230058,140.14,140.08,0.024957]
[1642475142651,26.39230058,140.14,140.08,2.878957]
[1642475142951,26.39230058,140.14,140.08,3.128957]
[1642475142952,26.65230058,140.14,140.08,3.128957]
[1642475143152,24.65173688,140.14,140.08,3.128957]
[1642475143352,0.25,140.13,140.08,3.128957]
[1642475145357,0.25,140.13,140.1,0.02489739]
[1642475146158,6.06119793,140.12,140.1,0.02489739]
[1642475147860,3.03059897,140.12,140.1,0.02489739]
[1642475148060,24.39173688,140.14,140.1,0.02489739]
[1642475148261,0.25,140.13,140.1,0.02489739]
[1642475148861,3.03059897,140.12,140.1,0.02489739]
[1642475149061,6.06119793,140.12,140.1,0.02489739]
[1642475149262,6.32119793,140.12,140.1,0.02489739]
[1642475150266,6.32119793,140.12,140.08,0.25]
[1642475150267,6.32119793,140.12,140.08,0.27486759]
[1642475151868,6.06119793,140.12,140.08,0.27486759]
[1642475153274,6.28960058,140.14,140.08,0.27486759]
[1642475153481,2.0005637,140.14,140.08,10.50486759]
[1642475153677,2.0005637,140.14,140.09,2.854]
[1642475153878,2.0005637,140.14,140.1,0.25]
[1642475154277,2.0005637,140.14,140.1,45.43165687]
[1642475154479,2.0005637,140.14,140.1,45.69165687]
[1642475154778,4.8545637,140.17,140.1,45.69165687]
[1642475154978,2.0005637,140.17,140.1,56.39385687]
[1642475155178,0.25,140.16,140.12,0.0248378]
[1642475155778,2.2505637,140.16,140.12,0.0248378]
[1642475156781,0.51,140.16,140.12,0.0248378]
[1642475157192,0.25,140.16,140.12,0.0248378]
[1642475160300,5.1145637,140.17,140.1,11.23697823]
[1642475160500,5.1145637,140.17,140.1,21.46697823]
[1642475160699,4.8545637,140.17,140.1,28.10897823]
[1642475161499,2.854,140.17,140.1,28.10897823]
[1642475161699,2.854,140.17,140.11,2.854]
[1642475161899,2.854,140.17,140.12,66.95321272]
[1642475162098,2.854,140.17,140.13,2.854]
[1642475162299,2.0005637,140.18,140.14,10.48]
[1642475162600,2.0005637,140.18,140.15,2.853]
[1642475162799,2.0005637,140.18,140.16,0.25]
[1642475162999,2.0005637,140.18,140.17,2.853]
[1642475163201,2.0005637,140.18,140.17,41.64245377]